bitfinex/quotes_SOLUSD_20211001
["timestamp","ask_amount","ask_price","bid_price","bid_amount"]
[1633060551048,8.61589537,139.29,139.28,12.46450957]
[1633060552949,3.02,139.37,139.29,5.53935786]
[1633060553149,3.02,139.39,139.3,8.31082113]
[1633060553353,3.02,139.39,139.3,12.46334048]
[1633060554949,21.42243635,139.4,139.3,15.48334048]
[1633060555151,21.42243635,139.4,139.31,8.31005074]
[1633060555951,3.02,139.41,139.31,8.31005074]
[1633060556152,3.02,139.41,139.31,12.41630764]
[1633060556354,3.02,139.43,139.33,4.07656046]
[1633060556550,3.02,139.43,139.33,35.74151484]
[1633060556750,9.76053876,139.44,139.34,12.36995829]
[1633060556953,9.76053876,139.44,139.35,3.02]
[1633060557152,3.02,139.45,139.35,3.02]
[1633060557350,24.58742307,139.45,139.35,3.02]
[1633060557552,3.02,139.45,139.35,3.02]
[1633060560554,63.01781068,139.45,139.35,3.02]
[1633060560756,63.01781068,139.45,139.31,4.0587432]
[1633060560757,63.01781068,139.45,139.32,3.02]
[1633060561556,63.01781068,139.45,139.33,8.30792855]
[1633060561758,57.38238107,139.45,139.32,3.02]
[1633060561955,57.38238107,139.45,139.33,8.30793043]
[1633060562360,3.02,139.45,139.33,8.30793043]
[1633060562556,3.02,139.45,139.34,3.02]
[1633060562757,3.02,139.47,139.35,8.3062865]
[1633060562959,3.02,139.49,139.36,3.02]
[1633060563158,3.02,139.49,139.37,8.30471042]
[1633060563355,3.02,139.49,139.38,3.02]
[1633060563557,23.55056098,139.5,139.38,3.02]
[1633060563760,23.55056098,139.5,139.38,8.65542961]
[1633060565156,12.50265298,139.52,139.38,8.65542961]
[1633060565357,12.50265298,139.52,139.38,8.67672721]
[1633060565759,3.02,139.52,139.38,26.72872721]
[1633060565961,12.50129268,139.54,139.39,8.30285101]
[1633060566160,29.5016286,139.51,139.4,3.02]
[1633060570461,3.02,139.5,139.4,3.02]
[1633060570662,3.02,139.5,139.38,72.7808]
[1633060570861,30.19768595,139.48,139.37,360.3579011]
[1633060571067,33.21768595,139.48,139.37,360.3579011]
[1633060571464,38.85311556,139.48,139.37,360.3579011]
[1633060571861,38.85311556,139.48,139.35,3.02]
[1633060572663,72.8072,139.47,139.35,3.02]
[1633060572861,25.41881645,139.45,139.35,3.02]
[1633060574963,3.02,139.48,139.36,5.63542961]
[1633060575165,3.02,139.5,139.37,3.02]
[1633060575363,3.02,139.5,139.38,0.0212976]
[1633060575563,3.02,139.52,139.39,3.02]
[1633060575768,3.02,139.52,139.39,8.65542961]
[1633060575966,28.86869847,139.51,139.39,8.65542961]
[1633060579970,28.86869847,139.51,139.39,3.02]
[1633060580369,3.02,139.5,139.39,3.02]
[1633060581069,19.893,139.5,139.37,3.02]
[1633060581271,25.52842961,139.5,139.38,3.02]
[1633060581470,35.03332328,139.5,139.38,3.02]
[1633060581679,29.6779047,139.48,139.38,3.02]
[1633060583072,29.6779047,139.48,139.38,8.65542961]
[1633060585073,29.6779047,139.48,139.39,8.30442933]
[1633060585273,29.6779047,139.48,139.4,3.02]
[1633060592386,29.6779047,139.48,139.41,8.30438331]
[1633060592583,12.50333328,139.51,139.41,8.30438331]
[1633060593684,22.98100643,139.5,139.41,8.30438331]
[1633060595287,12.50333328,139.51,139.41,8.30438331]
[1633060596287,24.95388718,139.5,139.41,8.30438331]
[1633060596889,12.50333328,139.51,139.41,8.30438331]
[1633060597287,12.50333328,139.51,139.41,12.23601559]
[1633060597488,12.50333328,139.51,139.41,8.30438331]
[1633060597888,40.64267015,139.51,139.41,8.30438331]
[1633060601393,40.64267015,139.51,139.42,3.02]
[1633060602196,31.15933687,139.51,139.42,3.02]
[1633060604597,12.50333328,139.51,139.42,3.02]
[1633060604801,12.50333328,139.51,139.43,12.24144223]
[1633060604999,3.02,139.51,139.43,12.24144223]
[1633060605401,9.48265298,139.52,139.44,3.02]
[1633060606701,9.48265298,139.52,139.43,3.93882184]
[1633060606702,18.13808259,139.52,139.43,3.93882184]
[1633060606901,8.65542961,139.52,139.41,3.97317322]
[1633060607100,8.65542961,139.52,139.41,12.27699311]
[1633060609104,8.65542961,139.52,139.41,3.97317322]
[1633060609808,8.65542961,139.52,139.42,6.98325426]
[1633060610006,3.02,139.52,139.43,8.30336651]
[1633060613330,8.65542961,139.52,139.42,3.02]
[1633060613730,8.65542961,139.52,139.41,3.98953032]
[1633060613929,8.65542961,139.52,139.41,12.29332801]
[1633060614530,3.02,139.52,139.41,12.29332801]
[1633060616033,3.02,139.52,139.42,3.94013607]
[1633060616233,3.02,139.52,139.42,12.24339992]
[1633060616433,3.02,139.52,139.42,3.94013607]
[1633060616832,9.48197278,139.53,139.42,6.96013607]
[1633060617034,9.48197278,139.53,139.45,3.89428397]
[1633060617233,9.48197278,139.53,139.45,26.01828397]
[1633060617434,9.75353643,139.54,139.46,3.02]
[1633060617633,9.75353643,139.54,139.46,11.23496336]
[1633060618036,84.88263277,139.56,139.46,3.02]
[1633060619933,12.49993277,139.56,139.46,3.02]
[1633060622737,38.3216255,139.56,139.46,3.02]
[1633060623339,28.84169273,139.56,139.46,3.02]
[1633060624540,38.3216255,139.56,139.46,3.02]
[1633060625140,28.84169273,139.56,139.46,3.02]
[1633060632451,19.22793268,139.59,139.46,8.65542961]
[1633060632651,58.97090331,139.62,139.56,21.04421178]
[1633060632652,3.02,139.62,139.56,21.04421178]
[1633060632852,3.02,139.64,139.56,21.04421178]
[1633060633052,79.5374,139.67,139.56,21.04421178]
[1633060633252,79.5374,139.67,139.57,3.02]
[1633060633854,27.75480072,139.7,139.57,3.02]
[1633060635855,26.25480072,139.7,139.57,3.02]
[1633060639062,3.02,139.7,139.58,3.13711736]
[1633060639261,3.02,139.7,139.59,3.02]
[1633060639662,36.50264366,139.73,139.59,3.02]
[1633060639863,3.02,139.72,139.59,3.02]
[1633060641167,24.7333914,139.71,139.59,3.02]
[1633060642764,3.02,139.72,139.59,3.02]
[1633060643768,25.08212988,139.71,139.59,3.02]
[1633060645969,3.02,139.7,139.59,3.02]
[1633060646169,3.02,139.7,139.57,3.02]
[1633060646568,27.72440242,139.69,139.57,3.02]
[1633060646769,3.02,139.68,139.57,3.02]
[1633060646973,21.34140513,139.67,139.57,3.02]
[1633060651875,21.34140513,139.67,139.56,21.04421178]
[1633060652078,3.02,139.66,139.56,21.04421178]
[1633060657186,24.457,139.66,139.56,21.04421178]
[1633060657983,33.93013907,139.66,139.56,21.04421178]
[1633060658389,90.80785999,139.66,139.56,21.04421178]
[1633060660785,17.923,139.65,139.56,21.04421178]
[1633060660985,3.02,139.64,139.56,21.04421178]
[1633060661186,46.64370545,139.64,139.56,21.04421178]
[1633060661386,14.47719991,139.63,139.56,21.04421178]
[1633060661591,3.02,139.62,139.56,21.04421178]
[1633060662389,3.74245086,139.61,139.56,21.04421178]
[1633060662589,3.02,139.6,139.56,21.04421178]
[1633060663190,26.78355643,139.59,139.56,21.04421178]
[1633060663388,29.80355643,139.59,139.56,21.04421178]
[1633060671197,21.04421178,139.56,139.52,1.87903599]
[1633060671599,21.04421178,139.56,139.5,1.92184384]
[1633060672198,50.03921515,139.56,139.5,1.92184384]
[1633060672799,3.02,139.55,139.49,1.93529861]
[1633060673400,3.02,139.55,139.5,1.94969539]
[1633060673600,3.02,139.55,139.51,1.9438914]
[1633060677206,3.02,139.55,139.5,1.98628567]
[1633060677602,3.02,139.55,139.51,1.98421085]
[1633060681608,3.02,139.55,139.49,1.98824282]
[1633060683223,81.04421178,139.56,139.51,2.01875747]
[1633060683417,21.04421178,139.56,139.53,2.00510398]
[1633060684836,21.04421178,139.56,139.52,2.01179847]
[1633060687034,21.04421178,139.56,139.51,2.03535317]
[1633060687035,26.88474231,139.54,139.51,2.03535317]
[1633060692739,26.88474231,139.54,139.5,2.00767996]
[1633060694542,48.39174231,139.54,139.5,2.00767996]
[1633060694946,3.02,139.53,139.51,1.99996694]
[1633060695142,3.02,139.53,139.49,2.03965738]
[1633060695742,59.31534981,139.53,139.49,2.03965738]
[1633060695943,64.95077942,139.53,139.47,2.07470541]
[1633060696343,78.5236,139.52,139.47,2.07470541]
[1633060696546,3.02,139.51,139.46,2.07457643]
[1633060696742,71.70774324,139.51,139.46,2.07457643]
[1633060696944,56.29534981,139.5,139.45,2.0747082]
[1633060697145,3.02,139.49,139.45,2.0747082]
[1633060697445,3.02,139.49,139.46,2.07007356]
[1633060697644,3.02,139.49,139.4,3.21133803]
[1633060697645,3.02,139.49,139.48,2.04881182]
[1633060697845,30.0,139.5,139.46,4.09454647]
[1633060698043,60.0,139.5,139.47,4.07021883]
[1633060698244,60.0,139.5,139.49,4.04554675]
[1633060698646,12.49925296,139.57,139.5,7.75618355]
[1633060698846,12.4965347,139.61,139.54,2.00825702]
[1633060699046,12.4965347,139.61,139.54,17.61725702]
[1633060699244,12.4965347,139.61,139.54,15.609]
[1633060700545,12.4965347,139.61,139.53,3.97021997]
[1633060701745,12.4965347,139.61,139.55,1.9556165]
[1633060701946,12.4965347,139.61,139.52,12.22992396]
[1633060702146,3.02,139.61,139.53,3.92816625]
[1633060702348,3.02,139.61,139.52,12.24399093]
[1633060702548,3.02,139.61,139.55,1.96867016]
[1633060702746,27.36443381,139.6,139.55,1.96867016]
[1633060703349,27.36443381,139.6,139.54,1.99286739]
[1633060704548,3.02,139.61,139.54,1.99286739]
[1633060704747,3.02,139.61,139.53,1.98763835]
[1633060704947,3.02,139.61,139.54,1.98548677]
[1633060706149,3.02,139.61,139.53,1.98475885]
[1633060706350,3.02,139.61,139.54,1.97681559]
[1633060706550,3.02,139.61,139.53,1.98318283]
[1633060707551,3.02,139.61,139.52,2.01069821]
[1633060708652,3.02,139.61,139.52,1.98940061]
[1633060710054,3.02,139.61,139.53,1.98485043]
[1633060710456,3.02,139.61,139.54,1.98197637]
[1633060711058,3.02,139.61,139.53,1.98201868]
[1633060712459,3.02,139.61,139.54,1.9818308]
[1633060715862,3.02,139.61,139.55,1.96997031]
[1633060716464,3.02,139.61,139.54,1.96936231]
[1633060716862,3.02,139.61,139.55,1.97904985]
[1633060717265,3.02,139.61,139.54,1.9738111]
[1633060719667,3.02,139.61,139.55,1.97246418]
[1633060719865,3.02,139.61,139.54,1.97319736]
[1633060720464,3.02,139.61,139.55,1.97223408]
[1633060720664,3.02,139.61,139.53,1.98201402]
[1633060721266,3.02,139.61,139.54,1.98220704]
[1633060722265,21.3682543,139.62,139.54,1.98220704]
[1633060722666,21.3682543,139.62,139.55,1.9836184]
[1633060724868,24.3882543,139.62,139.55,1.9836184]
[1633060725071,24.3882543,139.62,139.54,2.00727222]
[1633060726569,24.3882543,139.62,139.55,2.00702879]
[1633060727471,24.3882543,139.62,139.52,12.31279321]
[1633060727672,24.3882543,139.62,139.54,3.99019823]
[1633060727871,24.3882543,139.62,139.53,12.29563836]
[1633060728075,24.3882543,139.62,139.53,3.99654473]
[1633060731675,33.86410968,139.62,139.53,3.99654473]
[1633060733777,74.8364,139.61,139.53,3.99654473]
[1633060739086,74.8364,139.61,139.54,2.05523809]
[1633060739286,3.02,139.6,139.54,2.05523809]
[1633060739485,28.65459808,139.59,139.54,2.05523809]
[1633060741889,28.65459808,139.59,139.55,2.05346959]
[1633060742489,28.65459808,139.59,139.54,2.05727858]
[1633060743090,3.02,139.57,139.53,2.05675353]
[1633060743291,47.74993563,139.56,139.53,2.05675353]
[1633060744294,21.04421178,139.56,139.53,2.05675353]
[1633060744493,21.04421178,139.56,139.52,4.07512527]
[1633060744698,21.04421178,139.56,139.53,4.06029408]
[1633060744892,21.04421178,139.56,139.54,4.05310354]
[1633060748099,21.04421178,139.56,139.53,4.04239877]
[1633060748296,21.04421178,139.56,139.54,4.03844161]
[1633060748696,3.02,139.61,139.54,4.03844161]
[1633060748898,63.04088,139.66,139.6,1.99983555]
[1633060749097,3.02,139.66,139.61,1.98947106]
[1633060749901,31.618651,139.66,139.61,1.98947106]
[1633060751098,31.618651,139.66,139.6,1.99488705]
[1633060751297,31.618651,139.66,139.61,1.99056712]
[1633060752100,3.02,139.66,139.61,1.99056712]
[1633060756511,27.74417856,139.65,139.61,1.99056712]
[1633060756709,27.74417856,139.65,139.6,2.0722528]
[1633060757115,3.02,139.64,139.58,2.07253371]
[1633060757711,3.02,139.64,139.56,2.07271241]
[1633060757908,8.65542961,139.64,139.56,2.07271241]
[1633060758109,28.125502,139.62,139.56,2.07271241]
[1633060758313,31.145502,139.62,139.56,2.07271241]
[1633060759109,51.365502,139.62,139.56,2.07271241]
[1633060759509,5.63542961,139.61,139.55,2.07288291]
[1633060759709,5.63542961,139.61,139.51,8.29912131]
[1633060759710,28.01923559,139.59,139.53,2.07328724]
[1633060759909,3.02,139.58,139.52,2.07323293]
[1633060760109,8.65542961,139.58,139.52,2.07323293]
[1633060760311,7.75618355,139.5,139.48,4.14677577]
[1633060760510,30.14020263,139.49,139.46,1.53690147]
[1633060760710,30.14020263,139.49,139.43,6.22103313]
[1633060760912,30.14020263,139.49,139.41,0.0212976]
[1633060761312,8.65542961,139.48,139.4,6.2218427]
[1633060761512,8.65542961,139.48,139.38,36.22276243]
[1633060761712,5.63542961,139.47,139.38,36.22276243]
[1633060761916,25.85480157,139.46,139.38,36.22276243]
[1633060762311,25.85480157,139.46,139.38,6.22276243]
[1633060762511,25.85480157,139.46,139.37,3.0412976]
[1633060762712,3.02,139.48,139.37,3.0412976]
[1633060762912,39.48197278,139.53,139.37,22.67763761]
[1633060763118,3.02,139.5,139.37,22.67763761]
[1633060763514,3.02,139.5,139.38,79.60568976]
[1633060763712,21.41863348,139.5,139.39,3.02]
[1633060764513,21.41863348,139.5,139.39,8.65542961]
[1633060765115,21.41863348,139.5,139.39,3.02]
[1633060767313,24.43863348,139.5,139.39,3.02]
[1633060772820,30.07406309,139.5,139.39,3.02]
[1633060775225,24.43863348,139.5,139.39,3.02]
[1633060776426,30.07406309,139.5,139.37,80.0236]
[1633060777227,59.12972537,139.5,139.37,80.0236]
[1633060778248,89.12972537,139.5,139.37,80.0236]
[1633060778649,59.12972537,139.5,139.37,80.0236]
[1633060778852,53.49429576,139.5,139.37,80.0236]
[1633060779049,21.41863348,139.5,139.38,5.65672721]
[1633060779251,21.41863348,139.5,139.39,3.0412976]
[1633060780350,3.02,139.52,139.4,5.63542961]
[1633060780551,3.02,139.54,139.41,3.02]
[1633060780950,3.02,139.54,139.41,8.65542961]
[1633060781353,21.77637832,139.53,139.41,514.9495938]
[1633060781751,21.77637832,139.53,139.41,509.31416419]
[1633060785157,3.02,139.52,139.41,509.31416419]
[1633060786260,3.02,139.52,139.41,515.53260317]
[1633060787057,3.02,139.52,139.42,14.00616117]
[1633060787458,3.02,139.52,139.42,20.22665371]
[1633060788957,21.77637832,139.53,139.43,3.02]
[1633060789559,21.77637832,139.53,139.44,6.22111459]
[1633060790559,3.02,139.54,139.44,6.22111459]
[1633060790959,12.49993277,139.56,139.45,8.65542961]
[1633060791160,3.02,139.58,139.45,22.6620076]
[1633060791363,3.02,139.58,139.46,84.41122961]
[1633060791562,30.0,139.59,139.47,3.02]
[1633060791766,9.4767272,139.61,139.49,6.15905347]
[1633060791963,9.4767272,139.61,139.5,3.02]
[1633060792165,3.02,139.62,139.5,26.728]
[1633060792363,3.02,139.62,139.51,13.75338939]
[1633060792564,3.02,139.62,139.51,16.77338939]
[1633060792763,3.02,139.62,139.51,3.02]
[1633060794764,3.02,139.62,139.51,80.497]
[1633060795166,25.6261398,139.61,139.51,80.497]
[1633060795366,25.6261398,139.61,139.51,3.02]
[1633060795766,56.17680208,139.61,139.51,3.02]
[1633060796366,30.55066228,139.61,139.51,3.02]
[1633060798168,3.02,139.63,139.51,3.02]
[1633060799672,33.57066228,139.63,139.51,3.02]
[1633060799872,39.20609189,139.63,139.51,3.02]
[1633060800671,33.57066228,139.63,139.51,3.02]
[1633060801072,33.57066228,139.63,139.5,348.31957146]
[1633060801272,33.57066228,139.63,139.51,3.02]
[1633060802275,30.55066228,139.63,139.51,3.02]
[1633060802477,39.20609189,139.63,139.51,3.02]
[1633060802875,33.57066228,139.63,139.51,3.02]
[1633060803075,30.55066228,139.63,139.51,3.02]
[1633060803876,59.91300554,139.63,139.51,3.02]
[1633060805077,3.02,139.62,139.51,3.02]
[1633060806280,30.55066228,139.63,139.51,3.0412976]
[1633060806482,30.55066228,139.63,139.51,8.67672721]
[1633060809182,30.55066228,139.63,139.51,3.0412976]
[1633060809381,30.55066228,139.63,139.51,8.67672721]
[1633060812481,29.12700252,139.62,139.51,8.67672721]
[1633060812685,29.12700252,139.62,139.51,3.0412976]
[1633060813483,30.55066228,139.63,139.51,3.0412976]
[1633060814487,58.99927289,139.63,139.51,3.0412976]
[1633060816395,3.02,139.62,139.51,3.02]
[1633060816594,23.104,139.62,139.51,3.02]
[1633060817595,0.02088,139.61,139.5,348.31957146]
[1633060817797,27.69695513,139.59,139.5,348.31957146]
[1633060819197,3.02,139.6,139.5,348.31957146]
[1633060820197,25.11281667,139.59,139.5,348.31957146]
[1633060821200,25.11281667,139.59,139.5,354.53946998]
[1633060821399,25.11281667,139.59,139.5,6.21989852]
[1633060822199,3.02,139.58,139.48,6.22026652]
[1633060824999,8.65542961,139.58,139.47,9.23969121]
[1633060827503,3.02,139.58,139.47,9.23969121]
[1633060827703,25.11281667,139.59,139.47,9.23969121]
[1633060827904,25.11281667,139.59,139.48,5.63542961]
[1633060828106,25.11281667,139.59,139.49,9.21610817]
[1633060829309,25.11281667,139.59,139.5,6.17839418]
[1633060829506,3.02,139.6,139.5,9.19839418]
[1633060829907,3.02,139.62,139.5,9.19839418]
[1633060831114,3.02,139.62,139.5,42.76676292]
[1633060831311,84.82192961,139.64,139.51,13.93876776]
[1633060831513,82.16344615,139.64,139.53,6.1348549]
[1633060831714,79.14344615,139.64,139.53,28.8558549]
[1633060831911,30.0,139.66,139.54,13.78177932]
[1633060832110,30.0,139.68,139.55,3.02]
[1633060832111,33.02,139.68,139.55,3.02]
[1633060832312,58.72480027,139.68,139.55,3.02]
[1633060832511,33.02,139.68,139.55,3.02]
[1633060832713,33.02,139.68,139.55,8.65542961]
[1633060832911,33.02,139.68,139.55,3.02]
[1633060833315,3.02,139.68,139.55,3.02]
[1633060841026,3.02,139.68,139.55,20.551]
[1633060841827,3.02,139.68,139.56,5.63542961]
[1633060842026,3.02,139.68,139.57,3.02]
[1633060842426,3.02,139.68,139.57,8.65542961]
[1633060843027,9.74096455,139.72,139.57,8.65542961]
[1633060843425,3.02,139.73,139.57,39.09234477]
[1633060843633,3.02,139.73,139.58,79.9358]
[1633060843833,3.02,139.73,139.59,3.02]
[1633060844027,3.02,139.73,139.59,8.65542961]
[1633060844228,3.02,139.73,139.6,5.63542961]
[1633060844429,3.02,139.73,139.61,3.02]
[1633060844630,3.02,139.73,139.61,24.74]
[1633060845029,21.42439451,139.72,139.61,24.74]
[1633060845834,21.42439451,139.72,139.62,391.7831993]
[1633060846031,21.42439451,139.72,139.62,394.8031993]
[1633060846830,3.02,139.73,139.62,394.8031993]
[1633060847029,3.02,139.73,139.62,418.4931993]
[1633060847229,13.10232811,139.75,139.62,418.4931993]
[1633060848032,13.10232811,139.75,139.62,454.56554407]
[1633060848231,3.02,139.75,139.63,76.6003]
[1633060848432,63.02,139.78,139.64,3.02]
[1633060848634,63.02,139.78,139.64,8.65542961]
[1633060848835,60.0,139.78,139.65,5.63542961]
[1633060849032,76.8357,139.77,139.66,3.0412976]
[1633060849232,60.0,139.78,139.67,0.0212976]
[1633060849431,60.0,139.78,139.68,3.02]
[1633060849631,60.0,139.78,139.68,3.0412976]
[1633060850031,3.02,139.8,139.68,26.4782976]
[1633060851232,31.76510672,139.83,139.68,26.4782976]
[1633060851537,3.02,139.83,139.68,32.11372721]
[1633060851737,3.02,139.85,139.69,74.66]
[1633060851935,3.02,139.85,139.7,3.02]
[1633060852332,3.02,139.85,139.71,0.0212976]
[1633060852532,2.52,139.85,139.72,3.02]
[1633060852933,60.0,139.86,139.72,3.02]
[1633060853337,58.74510672,139.86,139.72,3.02]
[1633060853734,57.16264321,139.86,139.72,3.02]
[1633060854436,36.69373869,139.85,139.72,3.02]
[1633060854835,141.82352541,139.84,139.72,3.02]
[1633060855034,27.42002129,139.83,139.72,3.02]
[1633060855235,89.8388667,139.83,139.72,3.02]
[1633060855436,62.41884541,139.82,139.72,3.02]
[1633060855635,65.43884541,139.82,139.72,3.02]
[1633060855838,34.38053633,139.81,139.72,3.02]
[1633060856035,23.83403182,139.8,139.72,3.02]
[1633060856236,29.46946143,139.8,139.72,3.02]
[1633060856436,5.63542961,139.79,139.7,3.02]
[1633060857036,5.63542961,139.79,139.71,442.67615692]
[1633060858036,5.63542961,139.79,139.69,3.02]
[1633060858236,3.02,139.78,139.66,370.08162586]
[1633060858435,21.25886307,139.77,139.66,370.08162586]
[1633060858636,3.02,139.76,139.66,370.08162586]
[1633060858836,8.65542961,139.76,139.66,370.08162586]
[1633060860038,8.65542961,139.76,139.63,3.02]
[1633060861843,3.02,139.76,139.63,3.02]
[1633060862042,3.02,139.76,139.64,0.0212976]
[1633060862245,3.02,139.76,139.65,3.02]
[1633060863247,8.65542961,139.76,139.65,3.02]
[1633060863449,8.65542961,139.76,139.62,537.64060052]
[1633060864251,3.02,139.76,139.62,537.64060052]
[1633060864474,3.02,139.76,139.63,73.8145]
[1633060864669,3.02,139.76,139.64,3.02]
[1633060866175,8.65542961,139.76,139.64,3.02]
[1633060869585,8.25542961,139.76,139.64,3.02]
[1633060870380,36.29373869,139.76,139.62,534.62060052]
[1633060870585,57.53473869,139.76,139.62,534.62060052]
[1633060870984,0.02088,139.75,139.62,534.62060052]
[1633060871181,26.09514202,139.73,139.61,7.04588813]
[1633060871380,3.02,139.72,139.61,7.04588813]
[1633060871582,8.65542961,139.72,139.61,3.02]
[1633060872781,3.02,139.72,139.62,4.02406473]
[1633060872981,3.02,139.74,139.64,4.00192417]
[1633060873182,3.02,139.74,139.64,15.3110809]
[1633060873581,3.02,139.74,139.65,8.28921947]
[1633060873781,29.33798875,139.75,139.65,32.00721947]
[1633060873985,29.33798875,139.75,139.65,23.718]
[1633060874583,3.02,139.74,139.65,20.698]
[1633060874786,3.02,139.74,139.63,3.02]
[1633060875383,3.02,139.74,139.64,8.29011904]
[1633060875785,3.02,139.74,139.64,12.2884702]
[1633060876187,29.33798875,139.75,139.65,3.02]
[1633060876385,3.02,139.74,139.64,3.99835116]
[1633060876589,3.02,139.74,139.64,12.28772886]
[1633060877391,3.02,139.74,139.64,8.2893777]
[1633060879991,8.65542961,139.74,139.63,511.83803091]
[1633060880189,8.65542961,139.74,139.65,1.95370988]
[1633060880392,8.65542961,139.74,139.64,1.93811901]
[1633060880790,68.65542961,139.74,139.64,1.93811901]
[1633060881189,30.0,139.72,139.64,1.93811901]
[1633060881391,27.61727261,139.72,139.64,1.93811901]
[1633060882193,57.31727261,139.72,139.64,1.93811901]
[1633060882393,27.31727261,139.72,139.64,1.93811901]
[1633060882595,57.31727261,139.72,139.64,1.93811901]
[1633060882792,27.31727261,139.72,139.65,1.91948969]
[1633060884997,57.31727261,139.72,139.66,1.93415146]
[1633060885596,27.31727261,139.72,139.66,1.93415146]
[1633060885796,57.31727261,139.72,139.66,1.93415146]
[1633060886197,27.31727261,139.72,139.66,1.93415146]
[1633060889004,62.95270222,139.72,139.66,1.93415146]
[1633060889202,62.95270222,139.72,139.65,1.9356786]
[1633060889402,72.42177656,139.72,139.65,1.9356786]
[1633060890204,42.42177656,139.72,139.65,1.9356786]
[1633060890403,70.46008564,139.72,139.65,1.9356786]
[1633060890600,30.0,139.69,139.65,1.9356786]
[1633060890801,26.31074646,139.67,139.65,1.9356786]
[1633060891203,26.31074646,139.67,139.64,1.945628]
[1633060891601,26.31074646,139.67,139.63,1.95471696]
[1633060892003,3.02,139.68,139.63,1.95471696]
[1633060893005,30.34978542,139.67,139.63,1.95471696]
[1633060894605,3.02,139.66,139.63,1.95471696]
[1633060894803,3.02,139.66,139.59,8.29363531]
[1633060894804,3.02,139.66,139.61,1.95771052]
[1633060895003,8.65542961,139.66,139.61,1.95771052]
[1633060897204,3.02,139.66,139.61,1.95771052]
[1633060897504,3.02,139.66,139.6,1.9381416]
[1633060897709,3.02,139.66,139.61,1.94394143]
[1633060898506,3.02,139.66,139.6,1.94628221]
[1633060899104,3.02,139.66,139.61,1.96397426]
[1633060899704,8.65542961,139.66,139.6,1.97094114]
[1633060900306,56.03173869,139.66,139.58,1.99923568]
[1633060900510,56.03173869,139.66,139.57,2.0152587]
[1633060900711,56.03173869,139.66,139.55,408.45216853]
[1633060901506,30.0,139.65,139.55,408.45216853]
[1633060901706,26.17666075,139.63,139.55,408.45216853]
[1633060901905,3.02,139.62,139.55,2.0267023]
[1633060902107,8.15542961,139.62,139.55,2.0267023]
[1633060902506,22.90245616,139.6,139.54,2.02393401]
[1633060902705,3.02,139.59,139.54,2.02393401]
[1633060905607,3.02,139.59,139.53,2.01710272]
[1633060906509,3.02,139.59,139.54,2.00929549]
[1633060906707,3.02,139.59,139.53,2.01007254]
[1633060907106,3.02,139.59,139.54,2.00876142]
[1633060912118,3.02,139.59,139.55,2.06378682]
[1633060917917,8.65542961,139.63,139.57,2.06138781]
[1633060918121,8.65542961,139.63,139.58,2.05615514]
[1633060918516,3.02,139.63,139.58,2.05615514]
[1633060919119,3.02,139.63,139.57,2.06236855]
[1633060919517,3.02,139.63,139.58,2.05261771]
[1633060920719,65.63542961,139.66,139.59,2.03464684]
[1633060920720,3.02,139.65,139.59,2.03464684]
[1633060920919,2.92,139.65,139.6,2.03829558]
[1633060921119,9.47246705,139.67,139.61,2.02675642]
[1633060921120,3.02,139.67,139.61,2.02675642]
[1633060921322,12.49110968,139.69,139.63,2.01801762]
[1633060921517,12.49110968,139.69,139.62,2.02169649]
[1633060921518,33.02,139.69,139.62,2.02169649]
[1633060921818,33.02,139.69,139.63,2.01737712]
[1633060922218,30.09739482,139.68,139.63,2.01737712]
[1633060922419,30.09739482,139.68,139.62,2.00824292]
[1633060922620,3.02,139.69,139.63,2.00209197]
[1633060924620,3.02,139.69,139.62,2.02186526]
[1633060926220,3.02,139.69,139.63,2.03306782]
[1633060928624,3.02,139.69,139.62,2.03468335]
[1633060929026,8.65542961,139.69,139.62,2.03468335]
[1633060932726,8.65542961,139.69,139.61,2.0375588]
[1633060933327,38.65542961,139.69,139.61,2.0375588]
[1633060933528,38.65542961,139.69,139.6,2.03651819]
[1633060933728,68.65542961,139.69,139.61,2.03770681]